[Event "15e Open International de Quenza"]
[Site "Quenza"]
[Date "2026.07.05"]
[Round "3.4"]
[White "TOMASI, Albert"]
[Black "MAURIZZI, Marc Andria"]
[Result "0-1"]
[TimeControl "5min+3s"]
[WhiteTitle "FM"]
[BlackTitle "GM"]
[WhiteFideId "-"]
[BlackFideId "-"]
[WhiteElo "2235"]
[BlackElo "2556"]

1. e4 {[%clk 00:05:03]} {[%emt 00:00:01]} e5 {[%clk 00:05:03]} {[%emt
00:00:02]} 2. Nf3 {[%clk 00:05:03]} {[%emt 00:00:01]} Nc6 {[%clk 00:05:03]}
{[%emt 00:00:01]} 3. Bb5 {[%clk 00:05:03]} {[%emt 00:00:02]} a6 {[%clk
00:05:03]} 4. Ba4 {[%clk 00:05:03]} {[%emt 00:00:01]} Nf6 {[%clk 00:05:03]}
{[%emt 00:00:01]} 5. O-O {[%clk 00:05:03]} {[%emt 00:00:02]} Bc5 {[%clk
00:05:03]} {[%emt 00:00:02]} 6. c3 {[%clk 00:05:03]} {[%emt 00:00:02]} b5
{[%clk 00:05:03]} {[%emt 00:00:02]} 7. Bb3 {[%clk 00:05:02]} {[%emt 00:00:05]}
d6 {[%clk 00:05:03]} {[%emt 00:00:03]} 8. d4 {[%clk 00:05:02]} {[%emt
00:00:02]} Ba7 {[%clk 00:05:03]} 9. Qd3 {[%clk 00:05:02]} {[%emt 00:00:02]} O-O
{[%clk 00:04:48]} {[%emt 00:00:18]} 10. a4 {[%clk 00:05:02]} {[%emt 00:00:02]}
b4 {[%clk 00:04:19]} {[%emt 00:00:32]} 11. a5 {[%clk 00:05:01]} {[%emt
00:00:04]} bxc3 {[%clk 00:04:11]} {[%emt 00:00:11]} 12. bxc3 {[%clk 00:05:01]}
{[%emt 00:00:01]} exd4 {[%clk 00:04:07]} {[%emt 00:00:07]} 13. cxd4 {[%clk
00:05:01]} {[%emt 00:00:02]} Rb8 {[%clk 00:04:04]} {[%emt 00:00:06]} 14. Bg5
{[%clk 00:05:01]} {[%emt 00:00:03]} h6 {[%clk 00:04:04]} {[%emt 00:00:01]} 15.
Bh4 {[%clk 00:05:01]} {[%emt 00:00:02]} g5 {[%clk 00:03:23]} {[%emt 00:00:44]}
16. e5 {[%clk 00:05:01]} {[%emt 00:00:02]} Rxb3 {[%clk 00:02:18]} {[%emt
00:01:08]} 17. Qxb3 {[%clk 00:05:01]} {[%emt 00:00:01]} Nxd4 {[%clk 00:02:18]}
{[%emt 00:00:02]} 18. Nxd4 {[%clk 00:04:57]} {[%emt 00:00:06]} Bxd4 {[%clk
00:02:18]} 19. Ra4 {[%clk 00:04:57]} {[%emt 00:00:01]} dxe5 {[%clk 00:02:15]}
{[%emt 00:00:06]} 20. Bg3 {[%clk 00:04:57]} {[%emt 00:00:01]} Bd7 {[%clk
00:02:12]} {[%emt 00:00:06]} 21. Ra3 {[%clk 00:04:53]} {[%emt 00:00:08]} Ne4
{[%clk 00:02:07]} {[%emt 00:00:08]} 22. Qf3 {[%clk 00:04:32]} {[%emt 00:00:24]}
f5 {[%clk 00:02:05]} {[%emt 00:00:05]} 23. Qh5 {[%clk 00:04:16]} {[%emt
00:00:18]} Qf6 {[%clk 00:02:03]} {[%emt 00:00:05]} 24. Rf3 {[%clk 00:03:08]}
{[%emt 00:01:11]} Be8 {[%clk 00:01:50]} {[%emt 00:00:16]} 25. Rxf5 {[%clk
00:02:37]} {[%emt 00:00:34]} Bxh5 {[%clk 00:01:50]} {[%emt 00:00:03]} 26. Rxf6
{[%clk 00:02:37]} Rxf6 {[%clk 00:01:50]} {[%emt 00:00:01]} 27. Na3 {[%clk
00:02:33]} {[%emt 00:00:07]} Be2 {[%clk 00:01:50]} {[%emt 00:00:01]} 0-1

[Event "15e Open International de Quenza"]
[Site "Quenza"]
[Date "2026.07.05"]
[Round "3.15"]
[White "GERONIMI, Didier"]
[Black "KJARTANSSON, Gudmundur"]
[Result "0-1"]
[TimeControl "5min+3s"]
[WhiteTitle "-"]
[BlackTitle "GM"]
[WhiteFideId "-"]
[BlackFideId "-"]
[WhiteElo "1640"]
[BlackElo "2367"]

1. e4 {[%emt 00:01:45]} c6 {[%emt 00:00:02]} 2. d4 {[%emt 00:00:02]} d5 {[%emt
00:00:02]} 3. exd5 {[%emt 00:00:01]} cxd5 4. Bd3 Nc6 {[%emt 00:00:02]} 5. c3
Qc7 {[%emt 00:00:02]} 6. Nf3 {[%emt 00:00:15]} Bg4 {[%emt 00:00:03]} 7. Be3
{[%emt 00:00:10]} e6 {[%emt 00:00:02]} 8. Nbd2 Bd6 {[%emt 00:00:03]} 9. g3
{[%emt 00:00:05]} Nge7 {[%emt 00:00:10]} 10. Qc2 {[%emt 00:00:33]} Rc8 {[%emt
00:00:08]} 11. O-O {[%emt 00:00:07]} Bf5 {[%emt 00:00:13]} 12. Bxf5 {[%emt
00:00:37]} Nxf5 {[%emt 00:00:02]} 13. Rae1 {[%emt 00:00:02]} O-O {[%emt
00:00:05]} 14. Qb1 {[%emt 00:00:04]} h6 {[%emt 00:00:02]} 15. Nb3 {[%emt
00:01:05]} b6 {[%emt 00:00:10]} 16. Ne5 {[%emt 00:00:56]} Bxe5 {[%emt
00:00:22]} 17. dxe5 {[%emt 00:00:04]} Nxe3 18. Rxe3 {[%emt 00:00:12]} Nxe5
{[%emt 00:00:02]} 19. Nd2 {[%emt 00:00:28]} a5 {[%emt 00:00:18]} 20. h3 {[%emt
00:00:17]} b5 {[%emt 00:00:05]} 21. Rfe1 Nc6 {[%emt 00:00:16]} 22. a3 {[%emt
00:00:11]} Rfd8 {[%emt 00:00:03]} 23. Rc1 {[%emt 00:00:23]} Ne7 {[%emt
00:00:05]} 24. Nb3 {[%emt 00:00:03]} Nf5 {[%emt 00:00:02]} 25. Rd3 {[%emt
00:00:26]} 0-1

[ePGN "0.1;DGT LiveChess/2.2.11"]

[Event "15e Open International de Quenza"]
[Site "Quenza"]
[Date "2026.07.05"]
[Round "4.10"]
[White "BENZIDI, Lyad"]
[Black "BATSIASHVILI, Nino"]
[Result "0-1"]
[TimeControl "5min+3s"]
[WhiteTitle "-"]
[BlackTitle "GM"]
[WhiteFideId "-"]
[BlackFideId "-"]
[WhiteElo "1846"]
[BlackElo "2306"]

1. d4 {[%clk 00:05:03]} {[%emt 00:00:02]} d5 {[%clk 00:05:02]} {[%emt
00:00:05]} 2. c4 {[%clk 00:05:03]} {[%emt 00:00:01]} e6 {[%clk 00:05:02]} 3.
Nf3 {[%clk 00:05:03]} {[%emt 00:00:02]} Nf6 {[%clk 00:05:02]} 4. g3 {[%clk
00:05:03]} Bd6 {[%clk 00:05:02]} {[%emt 00:00:03]} 5. Bg2 {[%clk 00:05:03]}
{[%emt 00:00:02]} O-O {[%clk 00:05:02]} {[%emt 00:00:03]} 6. O-O {[%clk
00:05:03]} {[%emt 00:00:01]} Nbd7 {[%clk 00:05:00]} {[%emt 00:00:06]} 7. Qc2
{[%clk 00:05:02]} {[%emt 00:00:04]} b6 {[%clk 00:04:58]} {[%emt 00:00:05]} 8.
cxd5 {[%clk 00:04:56]} {[%emt 00:00:09]} exd5 {[%clk 00:04:58]} 9. Nc3 {[%clk
00:04:53]} {[%emt 00:00:06]} Bb7 {[%clk 00:04:58]} {[%emt 00:00:02]} 10. Nb5
{[%clk 00:04:48]} {[%emt 00:00:09]} Re8 {[%clk 00:04:54]} {[%emt 00:00:07]} 11.
Nxd6 {[%clk 00:04:43]} {[%emt 00:00:08]} cxd6 {[%clk 00:04:54]} {[%emt
00:00:01]} 12. Bf4 {[%clk 00:04:13]} {[%emt 00:00:32]} Nf8 {[%clk 00:04:54]}
{[%emt 00:00:02]} 13. Rac1 {[%clk 00:04:07]} {[%emt 00:00:09]} Ba6 {[%clk
00:04:45]} {[%emt 00:00:13]} 14. Rfe1 {[%clk 00:03:56]} {[%emt 00:00:14]} Rc8
{[%clk 00:04:27]} {[%emt 00:00:22]} 15. Qa4 {[%clk 00:03:48]} {[%emt 00:00:10]}
Rxc1 {[%clk 00:04:27]} {[%emt 00:00:02]} 16. Rxc1 {[%clk 00:03:48]} {[%emt
00:00:01]} Bxe2 {[%clk 00:04:25]} {[%emt 00:00:05]} 17. Qxa7 {[%clk 00:03:34]}
{[%emt 00:00:17]} Ne6 {[%clk 00:04:23]} {[%emt 00:00:05]} 18. Be3 {[%clk
00:03:05]} {[%emt 00:00:31]} Ng4 {[%clk 00:04:23]} {[%emt 00:00:02]} 19. Bd2
{[%clk 00:03:05]} {[%emt 00:00:02]} Qf6 {[%clk 00:04:13]} {[%emt 00:00:14]} 20.
Qa3 {[%clk 00:02:02]} {[%emt 00:01:05]} Nxd4 {[%clk 00:03:49]} {[%emt
00:00:28]} 21. Nxd4 {[%clk 00:01:56]} {[%emt 00:00:10]} Qxf2+ {[%clk 00:03:49]}
{[%emt 00:00:02]} 22. Kh1 {[%clk 00:01:46]} {[%emt 00:00:13]} Qxd4 {[%clk
00:03:49]} {[%emt 00:00:01]} 23. Be1 {[%clk 00:00:58]} {[%emt 00:00:50]} Nf2+
{[%clk 00:03:07]} {[%emt 00:00:46]} 24. Bxf2 {[%clk 00:00:49]} {[%emt
00:00:12]} Qxf2 {[%clk 00:03:07]} {[%emt 00:00:01]} 25. Qa4 {[%clk 00:00:15]}
{[%emt 00:00:37]} b5 {[%clk 00:03:01]} {[%emt 00:00:08]} 26. Qf4 {[%clk
00:00:13]} {[%emt 00:00:03]} Qxf4 {[%clk 00:02:59]} {[%emt 00:00:06]} 27. gxf4
{[%clk 00:00:13]} {[%emt 00:00:01]} d4 {[%clk 00:02:59]} {[%emt 00:00:01]} 28.
Re1 {[%clk 00:00:05]} {[%emt 00:00:12]} d3 {[%clk 00:02:59]} {[%emt 00:00:01]}
0-1

[Event "15e Open International de Quenza"]
[Site "Quenza"]
[Date "2026.07.05"]
[Round "4.5"]
[White "YANKELEVICH, Lev"]
[Black "FEDORCHUK, Sergey A."]
[Result "1-0"]
[TimeControl "5min+3s"]
[WhiteTitle "GM"]
[BlackTitle "GM"]
[WhiteFideId "-"]
[BlackFideId "-"]
[WhiteElo "2373"]
[BlackElo "2530"]

1. d4 {[%clk 00:05:03]} Nf6 {[%clk 00:05:03]} {[%emt 00:00:02]} 2. c4 {[%clk
00:05:03]} {[%emt 00:00:01]} e6 {[%clk 00:05:03]} {[%emt 00:00:02]} 3. g3
{[%clk 00:05:03]} Bb4+ {[%clk 00:04:56]} {[%emt 00:00:11]} 4. Bd2 {[%clk
00:05:03]} a5 {[%clk 00:04:50]} {[%emt 00:00:08]} 5. Bg2 {[%clk 00:05:03]}
{[%emt 00:00:02]} O-O {[%clk 00:04:50]} {[%emt 00:00:02]} 6. e3 {[%clk
00:05:03]} {[%emt 00:00:01]} d6 {[%clk 00:04:40]} {[%emt 00:00:13]} 7. Ne2
{[%clk 00:05:03]} {[%emt 00:00:02]} Bxd2+ {[%clk 00:04:27]} {[%emt 00:00:16]} 8.
Qxd2 {[%clk 00:05:03]} {[%emt 00:00:01]} e5 {[%clk 00:04:27]} {[%emt 00:00:01]}
9. Nbc3 {[%clk 00:05:03]} Nc6 {[%clk 00:04:20]} {[%emt 00:00:11]} 10. h3 {[%clk
00:04:54]} {[%emt 00:00:12]} h6 {[%clk 00:04:13]} {[%emt 00:00:10]} 11. g4
{[%clk 00:04:49]} {[%emt 00:00:08]} Re8 {[%clk 00:04:13]} {[%emt 00:00:04]} 12.
O-O {[%clk 00:04:39]} {[%emt 00:00:13]} exd4 {[%clk 00:03:20]} {[%emt
00:00:55]} 13. exd4 {[%clk 00:04:38]} {[%emt 00:00:04]} Ne7 {[%clk 00:03:19]}
{[%emt 00:00:04]} 14. Nf4 {[%clk 00:04:12]} {[%emt 00:00:29]} c6 {[%clk
00:03:19]} 15. Rfe1 {[%clk 00:04:09]} {[%emt 00:00:06]} Bd7 {[%clk 00:03:19]}
{[%emt 00:00:02]} 16. Re2 {[%clk 00:04:00]} {[%emt 00:00:12]} g5 {[%clk
00:02:39]} {[%emt 00:00:43]} 17. Nd3 {[%clk 00:03:54]} {[%emt 00:00:09]} Ng6
{[%clk 00:02:39]} {[%emt 00:00:01]} 18. Rxe8+ {[%clk 00:03:50]} {[%emt
00:00:07]} Qxe8 {[%clk 00:02:35]} {[%emt 00:00:07]} 19. f4 {[%clk 00:03:47]}
{[%emt 00:00:06]} Nh7 {[%clk 00:02:06]} {[%emt 00:00:31]} 20. Re1 {[%clk
00:03:41]} {[%emt 00:00:10]} Qf8 {[%clk 00:02:06]} {[%emt 00:00:01]} 21. Ne4
{[%clk 00:03:38]} {[%emt 00:00:06]} f6 {[%clk 00:01:56]} {[%emt 00:00:13]} 22.
f5 {[%clk 00:03:00]} {[%emt 00:00:40]} Nh4 {[%clk 00:01:56]} {[%emt 00:00:01]}
23. c5 {[%clk 00:02:59]} {[%emt 00:00:04]} dxc5 {[%clk 00:01:35]} {[%emt
00:00:24]} 24. dxc5 {[%clk 00:02:59]} {[%emt 00:00:01]} Nxg2 {[%clk 00:01:26]}
{[%emt 00:00:12]} 25. Kxg2 {[%clk 00:02:59]} Be8 {[%clk 00:01:26]} {[%emt
00:00:02]} 26. Nd6 {[%emt 00:00:20]} Bf7 27. Nxb7 {[%clk 00:02:39]} {[%emt
00:00:07]} Bxa2 {[%clk 00:01:26]} {[%emt 00:00:02]} 28. Nd6 {[%clk 00:02:24]}
{[%emt 00:00:18]} Bd5+ {[%clk 00:01:26]} {[%emt 00:00:02]} 29. Kg1 {[%clk
00:02:21]} {[%emt 00:00:06]} Qb8 {[%clk 00:01:26]} {[%emt 00:00:04]} 30. Re8+
{[%clk 00:02:07]} {[%emt 00:00:16]} Qxe8 {[%clk 00:01:26]} {[%emt 00:00:03]} 31.
Nxe8 Rxe8 {[%clk 00:01:26]} 32. Qxa5 {[%clk 00:02:07]} {[%emt 00:00:02]} Re3
{[%clk 00:01:26]} {[%emt 00:00:01]} 33. Nb4 {[%clk 00:02:04]} {[%emt 00:00:06]}
Be4 {[%clk 00:01:22]} {[%emt 00:00:07]} 34. Qd8+ {[%clk 00:02:04]} {[%emt
00:00:01]} Nf8 {[%clk 00:01:22]} 35. Qd4 {[%clk 00:02:04]} {[%emt 00:00:03]}
Rg3+ {[%clk 00:01:22]} {[%emt 00:00:01]} 36. Kf2 {[%clk 00:02:04]} {[%emt
00:00:02]} Rg2+ {[%clk 00:01:18]} {[%emt 00:00:08]} 37. Kf1 {[%clk 00:01:28]}
{[%emt 00:00:39]} Bf3 {[%clk 00:01:18]} {[%emt 00:00:01]} 38. Qxf6 {[%clk
00:01:28]} {[%emt 00:00:02]} Rh2 {[%clk 00:01:09]} {[%emt 00:00:12]} 39. Nxc6
{[%clk 00:01:28]} {[%emt 00:00:03]} Bxc6 {[%clk 00:01:03]} {[%emt 00:00:09]} 40.
Qxc6 {[%clk 00:01:28]} {[%emt 00:00:01]} Rxh3 {[%clk 00:01:03]} 41. Qd5+ {[%clk
00:01:27]} {[%emt 00:00:04]} Kg7 {[%clk 00:01:03]} {[%emt 00:00:01]} 42. c6
{[%clk 00:01:27]} {[%emt 00:00:01]} Re3 {[%clk 00:01:00]} {[%emt 00:00:06]} 43.
Qd4+ {[%clk 00:01:27]} {[%emt 00:00:01]} 1-0

[Event "15e Open International de Quenza"]
[Site "Quenza"]
[Date "2026.07.05"]
[Round "4.7"]
[White "KJARTANSSON, Gudmundur"]
[Black "MAZE, Sebastien"]
[Result "1-0"]
[TimeControl "5min+3s"]
[WhiteTitle "GM"]
[BlackTitle "GM"]
[WhiteFideId "-"]
[BlackFideId "-"]
[WhiteElo "2367"]
[BlackElo "2455"]

1. Nf3 {[%clk 00:05:03]} {[%emt 00:00:01]} Nf6 {[%clk 00:05:03]} 2. c4 {[%clk
00:05:03]} {[%emt 00:00:01]} g6 {[%clk 00:05:03]} {[%emt 00:00:01]} 3. d4
{[%clk 00:05:03]} {[%emt 00:00:01]} Bg7 {[%clk 00:05:03]} 4. g3 {[%clk
00:05:03]} {[%emt 00:00:01]} O-O {[%clk 00:05:03]} {[%emt 00:00:02]} 5. Nc3
{[%clk 00:05:03]} {[%emt 00:00:01]} d6 {[%clk 00:05:02]} {[%emt 00:00:05]} 6.
Bg2 {[%clk 00:05:03]} {[%emt 00:00:01]} c6 {[%clk 00:05:02]} 7. O-O {[%clk
00:05:03]} {[%emt 00:00:01]} Bf5 {[%clk 00:05:02]} {[%emt 00:00:01]} 8. Nh4
{[%clk 00:05:03]} {[%emt 00:00:04]} Bd7 {[%clk 00:05:02]} {[%emt 00:00:02]} 9.
e4 {[%clk 00:05:03]} e5 {[%clk 00:04:55]} {[%emt 00:00:12]} 10. dxe5 {[%clk
00:04:32]} {[%emt 00:00:34]} dxe5 {[%clk 00:04:55]} {[%emt 00:00:02]} 11. h3
{[%clk 00:04:27]} {[%emt 00:00:08]} Be6 {[%clk 00:04:41]} {[%emt 00:00:17]} 12.
b3 {[%clk 00:04:27]} {[%emt 00:00:02]} Qc8 {[%clk 00:04:09]} {[%emt 00:00:35]}
13. Kh2 {[%clk 00:04:26]} {[%emt 00:00:03]} Na6 {[%clk 00:04:09]} {[%emt
00:00:02]} 14. Be3 {[%clk 00:04:26]} {[%emt 00:00:03]} Rd8 {[%clk 00:04:08]}
{[%emt 00:00:04]} 15. Qc2 {[%clk 00:04:15]} {[%emt 00:00:14]} Nd7 {[%clk
00:03:56]} {[%emt 00:00:15]} 16. a3 {[%clk 00:03:57]} {[%emt 00:00:21]} Bf8
{[%clk 00:03:52]} {[%emt 00:00:07]} 17. f4 {[%clk 00:03:47]} {[%emt 00:00:13]}
f6 {[%clk 00:03:52]} 18. f5 {[%clk 00:03:19]} {[%emt 00:00:32]} Bf7 {[%clk
00:03:52]} 19. fxg6 {[%clk 00:03:19]} {[%emt 00:00:02]} hxg6 {[%clk 00:03:52]}
{[%emt 00:00:01]} 20. Rf2 {[%clk 00:03:03]} {[%emt 00:00:19]} Be7 {[%clk
00:03:39]} {[%emt 00:00:16]} 21. b4 {[%clk 00:03:02]} {[%emt 00:00:04]} Kg7
{[%clk 00:03:23]} {[%emt 00:00:18]} 22. Bf1 {[%clk 00:02:51]} {[%emt 00:00:14]}
Nc7 {[%clk 00:03:08]} {[%emt 00:00:18]} 23. Nf3 {[%clk 00:02:30]} {[%emt
00:00:24]} a5 {[%clk 00:03:04]} {[%emt 00:00:08]} 24. Rb1 {[%clk 00:02:24]}
{[%emt 00:00:09]} axb4 {[%clk 00:03:04]} {[%emt 00:00:01]} 25. axb4 {[%clk
00:02:24]} {[%emt 00:00:01]} Rh8 {[%clk 00:02:27]} {[%emt 00:00:39]} 26. h4
{[%clk 00:02:24]} {[%emt 00:00:03]} Nf8 {[%clk 00:02:27]} {[%emt 00:00:01]} 27.
Kg1 {[%clk 00:02:13]} {[%emt 00:00:14]} Be6 {[%clk 00:02:11]} {[%emt 00:00:20]}
28. c5 {[%clk 00:02:01]} {[%emt 00:00:14]} Bg4 {[%clk 00:01:50]} {[%emt
00:00:23]} 29. Bc4 {[%clk 00:01:55]} {[%emt 00:00:10]} Be6 {[%clk 00:01:46]}
{[%emt 00:00:08]} 30. Bf1 {[%clk 00:01:53]} {[%emt 00:00:05]} Bg4 {[%clk
00:01:24]} {[%emt 00:00:25]} 31. Bc4 {[%clk 00:01:53]} {[%emt 00:00:01]} Be6
{[%clk 00:01:24]} 32. Nd2 {[%clk 00:01:48]} {[%emt 00:00:07]} Qe8 {[%clk
00:01:17]} {[%emt 00:00:10]} 33. Rbf1 {[%clk 00:01:42]} {[%emt 00:00:10]} Bh3
{[%clk 00:01:04]} {[%emt 00:00:16]} 34. Re1 {[%clk 00:01:41]} {[%emt 00:00:04]}
Nfe6 {[%clk 00:01:03]} {[%emt 00:00:04]} 35. Nf3 {[%clk 00:01:36]} {[%emt
00:00:08]} Nf8 {[%clk 00:00:48]} {[%emt 00:00:19]} 36. Nd5 {[%clk 00:01:36]}
{[%emt 00:00:02]} cxd5 {[%clk 00:00:47]} {[%emt 00:00:04]} 37. exd5 {[%clk
00:01:36]} Bf5 {[%clk 00:00:47]} {[%emt 00:00:02]} 38. Qb2 {[%clk 00:01:33]}
{[%emt 00:00:05]} Rd8 {[%clk 00:00:45]} {[%emt 00:00:05]} 39. d6 {[%clk
00:01:24]} {[%emt 00:00:12]} Bxd6 40. cxd6 {[%clk 00:01:24]} Rxd6 {[%clk
00:00:45]} 41. Bc5 {[%clk 00:01:21]} {[%emt 00:00:05]} Rd7 {[%clk 00:00:42]}
{[%emt 00:00:06]} 42. Nxe5 {[%clk 00:01:15]} {[%emt 00:00:10]} fxe5 {[%clk
00:00:27]} {[%emt 00:00:18]} 43. Rxe5 {[%clk 00:01:15]} Rd1+ {[%clk 00:00:23]}
{[%emt 00:00:07]} 44. Kh2 {[%clk 00:01:15]} {[%emt 00:00:02]} Kh7 {[%clk
00:00:21]} {[%emt 00:00:05]} 45. Rxe8 {[%clk 00:01:15]} {[%emt 00:00:02]} Nxe8
{[%clk 00:00:21]} 46. g4 {[%clk 00:01:09]} {[%emt 00:00:08]} b5 {[%clk
00:00:18]} {[%emt 00:00:07]} 47. Bxf8 {[%clk 00:01:08]} {[%emt 00:00:04]} Rxf8
{[%clk 00:00:18]} {[%emt 00:00:03]} 48. gxf5 {[%clk 00:01:08]} {[%emt
00:00:02]} 1-0

[Event "15e Open International de Quenza"]
[Site "Quenza"]
[Date "2026.07.05"]
[Round "4.14"]
[White "APPIETTO, Andria"]
[Black "WEBB, Laurence E"]
[Result "0-1"]
[TimeControl "5min+3s"]
[WhiteTitle "-"]
[BlackTitle "FM"]
[WhiteFideId "-"]
[BlackFideId "-"]
[WhiteElo "1815"]
[BlackElo "2200"]

1. d4 {[%clk 00:05:03]} Nf6 {[%clk 00:05:03]} {[%emt 00:00:02]} 2. Nf3 {[%clk
00:05:03]} e6 {[%clk 00:05:03]} {[%emt 00:00:04]} 3. Bg5 {[%clk 00:05:03]}
{[%emt 00:00:02]} h6 {[%clk 00:05:03]} {[%emt 00:00:02]} 4. Bh4 {[%clk
00:05:03]} b6 {[%clk 00:05:03]} {[%emt 00:00:04]} 5. Nbd2 {[%clk 00:05:03]}
{[%emt 00:00:02]} Bb7 {[%clk 00:05:02]} {[%emt 00:00:03]} 6. e3 {[%clk
00:05:03]} {[%emt 00:00:01]} d6 {[%clk 00:04:56]} {[%emt 00:00:10]} 7. Bd3
{[%clk 00:05:02]} {[%emt 00:00:04]} g5 {[%clk 00:04:56]} {[%emt 00:00:02]} 8.
Bg3 {[%clk 00:05:01]} {[%emt 00:00:04]} g4 {[%clk 00:04:48]} {[%emt 00:00:11]}
9. Nh4 {[%clk 00:04:53]} {[%emt 00:00:10]} Rg8 {[%clk 00:04:48]} {[%emt
00:00:03]} 10. h3 {[%emt 00:00:27]} Nh5 {[%clk 00:04:48]} {[%emt 00:00:02]} 11.
hxg4 {[%clk 00:04:09]} {[%emt 00:00:25]} Nxg3 {[%clk 00:04:48]} {[%emt
00:00:02]} 12. fxg3 {[%clk 00:04:06]} {[%emt 00:00:05]} Qg5 {[%clk 00:04:48]}
{[%emt 00:00:02]} 13. Be4 {[%clk 00:03:49]} {[%emt 00:00:19]} Qxe3+ {[%clk
00:04:14]} {[%emt 00:00:38]} 14. Qe2 {[%clk 00:03:49]} Qxe2+ {[%clk 00:03:47]}
{[%emt 00:00:30]} 15. Kxe2 {[%clk 00:03:47]} {[%emt 00:00:06]} Nc6 {[%clk
00:03:47]} {[%emt 00:00:03]} 16. c3 {[%clk 00:02:51]} {[%emt 00:00:58]} Rxg4
{[%clk 00:03:43]} {[%emt 00:00:07]} 17. Kf3 {[%clk 00:02:46]} {[%emt 00:00:08]}
Rg5 {[%clk 00:03:21]} {[%emt 00:00:25]} 18. Kf2 {[%clk 00:02:32]} {[%emt
00:00:16]} O-O-O {[%clk 00:03:13]} {[%emt 00:00:13]} 19. Ndf3 {[%clk 00:02:28]}
{[%emt 00:00:06]} Rg4 {[%clk 00:03:03]} {[%emt 00:00:13]} 20. Bc2 {[%clk
00:02:19]} {[%emt 00:00:12]} Be7 {[%clk 00:02:56]} {[%emt 00:00:11]} 21. Rad1
{[%clk 00:02:16]} {[%emt 00:00:04]} Rdg8 {[%clk 00:02:53]} {[%emt 00:00:08]} 22.
Rh3 {[%clk 00:02:06]} {[%emt 00:00:12]} Bxh4 {[%clk 00:02:17]} {[%emt
00:00:39]} 23. Nxh4 {[%clk 00:01:46]} {[%emt 00:00:23]} Ne7 {[%clk 00:02:17]}
{[%emt 00:00:03]} 24. Nf3 {[%clk 00:01:40]} {[%emt 00:00:09]} Nf5 {[%clk
00:02:09]} {[%emt 00:00:12]} 25. Bxf5 {[%clk 00:01:39]} {[%emt 00:00:03]} exf5
{[%clk 00:02:09]} {[%emt 00:00:02]} 26. Rd2 {[%clk 00:00:47]} {[%emt 00:00:55]}
f4 {[%clk 00:02:03]} {[%emt 00:00:08]} 27. gxf4 {[%clk 00:00:42]} {[%emt
00:00:08]} Rxg2+ {[%clk 00:02:02]} {[%emt 00:00:04]} 28. Ke3 {[%clk 00:00:42]}
{[%emt 00:00:01]} Re8+ {[%clk 00:01:52]} {[%emt 00:00:14]} 29. Kd3 {[%clk
00:00:31]} {[%emt 00:00:10]} Be4+ {[%clk 00:01:47]} {[%emt 00:00:11]} 0-1